bitfinex-derivatives/quotes_BTCF0:USTF0_20250329
["timestamp","ask_amount","ask_price","bid_price","bid_amount"]
[1743228843089,0.03886,83812.0,83811.0,0.1822414]
[1743228843290,0.1582199,83812.0,83811.0,0.1822414]
[1743228843594,0.07086,83812.0,83811.0,0.1822414]
[1743228844881,0.1902199,83812.0,83811.0,0.1822414]
[1743228852902,0.29711708,83812.0,83811.0,0.1822414]
[1743228855802,0.1902199,83812.0,83811.0,0.1822414]
[1743228858102,0.1902199,83812.0,83811.0,0.4422414]
[1743228858404,0.1890599,83812.0,83811.0,0.4422414]
[1743228861494,0.0697,83812.0,83811.0,0.4422414]
[1743228861700,0.1890599,83812.0,83811.0,0.4422414]
[1743228863303,0.0697,83812.0,83811.0,0.4422414]
[1743228864502,0.1880599,83812.0,83811.0,0.4422414]
[1743228865004,0.1830599,83812.0,83811.0,0.4422414]
[1743228865201,0.18717991,83812.0,83811.0,0.4422414]
[1743228865396,0.18829992,83812.0,83811.0,0.4422414]
[1743228865707,0.18717991,83812.0,83811.0,0.4422414]
[1743228865910,0.18517991,83812.0,83811.0,0.4422414]
[1743228866100,0.18717991,83812.0,83811.0,0.4422414]
[1743228866606,0.18517991,83812.0,83811.0,0.4422414]
[1743228866808,0.18817991,83812.0,83811.0,0.4422414]
[1743228867700,0.45817991,83812.0,83811.0,0.1204414]
[1743228867898,0.28817991,83812.0,83811.0,0.1204414]
[1743228868098,0.18817991,83812.0,83811.0,0.1204414]
[1743228868309,0.43517991,83812.0,83811.0,0.1204414]
[1743228868603,0.42817991,83812.0,83811.0,0.1204414]
[1743228868800,0.49320922,83812.0,83811.0,0.33521704]
[1743228869001,0.54620922,83812.0,83811.0,0.33521704]
[1743228869207,0.55620922,83812.0,83811.0,0.33521704]
[1743228869697,0.57620922,83812.0,83811.0,0.33521704]
[1743228869898,0.50620922,83812.0,83811.0,0.33521704]
[1743228870098,0.29620922,83812.0,83811.0,0.33521704]
[1743228870298,0.57620922,83812.0,83811.0,0.33521704]
[1743228870498,0.40620922,83812.0,83811.0,0.33521704]
[1743228870699,0.55620922,83812.0,83811.0,0.33521704]
[1743228870895,0.38620922,83812.0,83811.0,0.33521704]
[1743228871200,0.55620922,83812.0,83811.0,0.33521704]
[1743228871393,0.29620922,83812.0,83811.0,0.33521704]
[1743228871602,0.56620922,83812.0,83811.0,0.33521704]
[1743228871803,0.43917991,83812.0,83811.0,0.1204414]
[1743228874109,0.47917991,83812.0,83811.0,0.1204414]
[1743228874297,0.47917991,83812.0,83811.0,0.00108]
[1743228874493,0.45917991,83812.0,83811.0,0.00108]
[1743228874697,0.45917991,83812.0,83811.0,0.1204414]
[1743228878508,0.29917991,83812.0,83811.0,0.1204414]
[1743228878710,0.37917991,83812.0,83811.0,0.1204414]
[1743228879212,0.46917991,83812.0,83811.0,0.1204414]
[1743228879803,0.29917991,83812.0,83811.0,0.1204414]
[1743228880204,0.28917991,83812.0,83811.0,0.1204414]
[1743228880405,0.18917991,83812.0,83811.0,0.1204414]
[1743228880601,0.29917991,83812.0,83811.0,0.1204414]
[1743228881213,0.45917991,83812.0,83811.0,0.1204414]
[1743228881903,0.45917991,83812.0,83811.0,0.00108]
[1743228882215,0.1193699,83805.0,83804.0,0.1501708]
[1743228882416,0.21044991,83805.0,83804.0,0.03188]
[1743228882708,0.12044991,83805.0,83804.0,0.00108]
[1743228883111,0.46584991,83805.0,83804.0,0.00108]
[1743228883313,0.18584991,83805.0,83804.0,0.00108]
[1743228883518,0.44584991,83805.0,83804.0,0.1204513]
[1743228883709,0.38584991,83805.0,83804.0,0.00108]
[1743228883908,0.18684991,83805.0,83804.0,0.00108]
[1743228884215,0.18784991,83805.0,83804.0,0.00108]
[1743228884819,0.1999341,83805.0,83804.0,0.00108]
[1743228885009,0.4699341,83805.0,83804.0,0.00108]
[1743228885205,0.4399341,83805.0,83804.0,0.00108]
[1743228885405,0.1999341,83805.0,83804.0,0.00108]
[1743228885616,0.4399341,83805.0,83804.0,0.00108]
[1743228885815,0.3099341,83805.0,83804.0,0.00108]
[1743228886110,0.3099341,83805.0,83804.0,0.03288]
[1743228886315,0.4499341,83805.0,83804.0,0.06438]
[1743228886517,0.4699341,83805.0,83804.0,0.06438]
[1743228886720,0.1999341,83805.0,83804.0,0.06438]
[1743228886915,0.4799341,83805.0,83804.0,0.03288]
[1743228887223,0.4299341,83805.0,83804.0,0.03288]
[1743228887518,0.4399341,83805.0,83804.0,0.03288]
[1743228887719,0.4699341,83805.0,83804.0,0.03288]
[1743228887918,0.4699341,83805.0,83804.0,0.00108]
[1743228888618,0.2999341,83805.0,83804.0,0.00108]
[1743228888815,0.31935119,83805.0,83804.0,0.00108]
[1743228889019,0.47935119,83805.0,83804.0,0.00108]
[1743228889322,0.48935119,83805.0,83804.0,0.00108]
[1743228889523,0.20935119,83805.0,83804.0,0.00108]
[1743228889823,0.42935119,83805.0,83804.0,0.00108]
[1743228890014,0.47935119,83805.0,83804.0,0.00108]
[1743228890214,0.45935119,83805.0,83804.0,0.00108]
[1743228890416,0.31935119,83805.0,83804.0,0.00108]
[1743228890616,0.45935119,83805.0,83804.0,0.00108]
[1743228890814,0.47935119,83805.0,83804.0,0.00108]
[1743228891009,0.46935119,83805.0,83804.0,0.03238]
[1743228891212,0.43935119,83805.0,83804.0,0.03238]
[1743228891414,0.20935119,83805.0,83804.0,0.03238]
[1743228891614,0.47935119,83805.0,83804.0,0.03238]
[1743228891814,0.20935119,83805.0,83804.0,0.00108]
[1743228892022,0.1193742,83802.0,83801.0,0.0316]
[1743228892220,0.2398713,83802.0,83801.0,0.03268]
[1743228892710,0.1298713,83802.0,83801.0,0.03268]
[1743228893019,0.55518695,83802.0,83801.0,0.00108]
[1743228893319,0.1193756,83801.0,83800.0,0.13185358]
[1743228893518,0.40940835,83801.0,83800.0,0.13185358]
[1743228893707,0.19390835,83801.0,83800.0,0.13297358]
[1743228893912,0.18447561,83801.0,83800.0,0.13297358]
[1743228894113,0.29447561,83801.0,83800.0,0.13297358]
[1743228894312,0.40447561,83801.0,83800.0,0.13297358]
[1743228894720,0.18447561,83801.0,83800.0,0.13297358]
[1743228896523,0.32702046,83801.0,83800.0,0.25235058]
[1743228897425,0.14314486,83801.0,83800.0,0.25235058]
[1743228897625,0.26252046,83801.0,83800.0,0.25235058]
[1743228900134,0.22690834,83801.0,83800.0,0.25235058]
[1743228900731,0.22690834,83801.0,83800.0,0.13297358]
[1743228900933,0.29070834,83801.0,83800.0,0.10127358]
[1743228901229,0.55290834,83801.0,83800.0,0.10127358]
[1743228903031,0.44597561,83801.0,83800.0,0.10127358]
[1743228903934,0.44597561,83801.0,83800.0,0.10015358]
[1743228904132,0.44597561,83801.0,83800.0,0.10131358]
[1743228904529,0.44597561,83801.0,83800.0,0.10015358]
[1743228904735,0.1193799,83798.0,83797.0,0.00017892]
[1743228904931,0.40045991,83798.0,83797.0,0.00125892]
[1743228905632,0.43355991,83798.0,83797.0,0.00125892]
[1743228905833,0.43369657,83798.0,83797.0,0.00125892]
[1743228906229,0.43370528,83798.0,83797.0,0.00125892]
[1743228906435,0.43369355,83798.0,83797.0,0.00125892]
[1743228906736,0.43355991,83798.0,83797.0,0.00125892]
[1743228906936,0.43355991,83798.0,83797.0,0.00225892]
[1743228908027,0.43355991,83798.0,83797.0,0.00217892]
[1743228908227,0.46405991,83798.0,83797.0,0.00217892]
[1743228908635,0.46405991,83798.0,83797.0,0.00325892]
[1743228909137,0.46416735,83798.0,83797.0,0.12264022]
[1743228909532,0.46416735,83798.0,83797.0,0.12376022]
[1743228909832,0.46416735,83798.0,83797.0,0.12268022]
[1743228910031,0.46416735,83798.0,83797.0,0.18528022]
[1743228910435,0.46416735,83798.0,83797.0,0.18416022]
[1743228910739,0.40056735,83798.0,83797.0,0.18416022]
[1743228911045,0.00118745,83798.0,83797.0,0.54612022]
[1743228911236,0.00118745,83798.0,83797.0,0.78612022]
[1743228912236,0.00010744,83798.0,83797.0,0.78612022]
[1743228913128,0.00010744,83798.0,83797.0,0.79829101]
[1743228916642,0.10689385,83805.0,83804.0,0.1193713]
[1743228916843,0.10797386,83805.0,83804.0,0.4812513]
[1743228917349,0.10797386,83805.0,83804.0,0.7112513]
[1743228917547,0.10689385,83805.0,83804.0,0.7762513]
[1743228917843,0.1080958,83805.0,83804.0,0.7762513]
[1743228918148,0.1100958,83805.0,83804.0,0.7762513]
[1743228919149,0.10897579,83805.0,83804.0,0.7762513]
[1743228919348,0.00208194,83805.0,83804.0,0.7762513]
[1743228923648,0.03458194,83805.0,83804.0,0.5462513]
[1743228923850,0.03570195,83805.0,83804.0,0.5462513]
[1743228924053,0.03458194,83805.0,83804.0,0.5462513]
[1743228924949,0.03458194,83805.0,83804.0,0.8262513]
[1743228925253,0.00208194,83805.0,83804.0,0.8262513]
[1743228926154,0.0308,83810.0,83809.0,0.1193642]
[1743228926349,0.0308,83810.0,83809.0,0.1204442]
[1743228927053,0.03188001,83810.0,83809.0,0.1204442]
[1743228927253,0.0308,83810.0,83809.0,0.1204442]
[1743228927452,0.0328,83810.0,83809.0,0.1204442]
[1743228927648,0.0328,83810.0,83809.0,0.3704442]
[1743228927954,0.0348,83810.0,83809.0,0.3704442]
[1743228928949,0.004,83810.0,83809.0,0.3704442]
[1743228929953,0.002,83810.0,83809.0,0.3714442]
[1743228930262,0.033,83810.0,83809.0,0.3714442]
[1743228930558,0.031,83810.0,83809.0,0.3714442]
[1743228930749,0.031,83810.0,83809.0,0.3724442]
[1743228931150,0.031,83810.0,83809.0,0.3714442]
[1743228931352,0.031,83810.0,83809.0,0.3724442]
[1743228931555,0.031,83810.0,83809.0,0.4176142]
[1743228931850,0.031,83810.0,83809.0,0.4156142]
[1743228932049,0.0613,83810.0,83809.0,0.4176142]
[1743228932348,0.1806628,83810.0,83809.0,0.4176142]
[1743228932550,0.1816628,83810.0,83809.0,0.4166142]
[1743228932752,0.1826628,83810.0,83809.0,0.4156142]
[1743228933146,0.0633,83810.0,83809.0,0.4156142]
[1743228934958,0.0623,83810.0,83809.0,0.4156142]
[1743228935562,0.0633,83810.0,83809.0,0.4156142]
[1743228935965,0.0623,83810.0,83809.0,0.4156142]
[1743228936653,0.0623,83810.0,83809.0,0.4475142]
[1743228936862,0.0633,83810.0,83809.0,0.4475142]
[1743228937257,0.00017892,83814.0,83809.0,0.4475142]
[1743228937448,0.00017892,83814.0,83813.0,0.4801585]
[1743228938159,0.00017892,83814.0,83813.0,0.5449385]
[1743228939557,0.00017892,83814.0,83813.0,0.7949385]
[1743228940162,0.00017892,83814.0,83813.0,0.80695416]
[1743228940363,0.22616197,83824.0,83823.0,0.1193443]
[1743228940565,0.12046371,83824.0,83823.0,0.1204243]
[1743228940964,0.15206371,83824.0,83823.0,0.13237855]
[1743228941169,0.03272001,83824.0,83823.0,0.16267855]
[1743228941761,0.03272001,83824.0,83823.0,0.19367855]
[1743228942165,0.10681827,83825.0,83824.0,0.1193429]
[1743228942468,0.10825827,83825.0,83824.0,0.1820829]
[1743228943268,0.14145827,83825.0,83824.0,0.1820829]
[1743228944167,0.14445827,83825.0,83824.0,0.1820829]
[1743228944669,0.03864,83825.0,83824.0,0.1820829]
[1743228944855,0.0372,83825.0,83824.0,0.1820829]
[1743228950567,0.03864,83825.0,83824.0,0.1820829]
[1743228952869,0.0372,83825.0,83824.0,0.1820829]
[1743228960873,0.03864,83825.0,83824.0,0.1820829]
[1743228961672,0.26864,83825.0,83824.0,0.2987229]
[1743228961879,0.1897814,83825.0,83824.0,0.1207829]
[1743228962073,0.07044,83825.0,83824.0,0.1207829]
[1743228962273,0.069,83825.0,83824.0,0.1519829]
[1743228962474,0.069,83825.0,83824.0,0.1827829]
[1743228962679,0.03864,83825.0,83824.0,0.1827829]
[1743228962873,0.0372,83825.0,83824.0,0.1827829]
[1743228963074,0.0372,83825.0,83824.0,0.2158829]
[1743228965868,0.03872,83825.0,83824.0,0.2158829]
[1743228966071,0.0372,83825.0,83824.0,0.2158829]
[1743228967682,0.03864,83825.0,83824.0,0.2158829]
[1743228968683,0.03864,83825.0,83824.0,0.43019677]
[1743228968886,0.0372,83825.0,83824.0,0.43019677]
[1743228970587,0.03864,83825.0,83824.0,0.43019677]
[1743228971275,0.0372,83825.0,83824.0,0.43019677]
[1743228971475,0.03864,83825.0,83824.0,0.43019677]
[1743228973186,0.3979814,83825.0,83824.0,0.39709677]
[1743228973481,0.26479967,83825.0,83824.0,0.1207829]
[1743228973682,0.51479967,83825.0,83824.0,0.00144]
[1743228973883,0.50479967,83825.0,83824.0,0.00144]
[1743228975786,0.50479967,83825.0,83824.0,0.1207829]
[1743228977281,0.38545827,83825.0,83824.0,0.1207829]
[1743228977478,0.14545827,83825.0,83824.0,0.2170829]
[1743228977880,0.28788264,83825.0,83824.0,0.2170829]
[1743228978081,0.30040577,83825.0,83824.0,0.2170829]
[1743228978282,0.33260577,83825.0,83824.0,0.2170829]
[1743228981983,0.00544,83825.0,83824.0,0.2170829]
[1743228982183,0.004,83825.0,83824.0,0.2170829]
[1743228987680,0.003,83825.0,83824.0,0.2170829]
[1743228987882,0.004,83825.0,83824.0,0.2170829]
[1743228988488,0.003,83825.0,83824.0,0.2170829]
[1743228988690,0.004,83825.0,83824.0,0.2170829]
[1743228989581,0.0353,83825.0,83824.0,0.2170829]
[1743228989781,0.0353,83825.0,83824.0,0.8378829]
[1743228989985,0.10700241,83831.0,83830.0,0.1193343]
[1743228990190,0.10844241,83831.0,83830.0,0.1207743]
[1743228990495,0.13974241,83831.0,83830.0,0.1207743]
[1743228990878,0.13974241,83831.0,83830.0,0.1829743]
[1743228991286,0.14774241,83831.0,83830.0,0.1829743]
[1743228991896,0.11644241,83831.0,83830.0,0.1829743]
[1743228992092,0.14794241,83831.0,83830.0,0.1829743]
[1743228992488,0.11644241,83831.0,83830.0,0.5437743]
[1743228992689,0.14794241,83831.0,83830.0,0.5437743]
[1743228993192,0.04094,83831.0,83830.0,0.5437743]
[1743228993896,0.04094,83831.0,83830.0,0.55291764]
[1743228994493,0.00944,83831.0,83830.0,0.55291764]
[1743228994697,0.04094,83831.0,83830.0,0.55291764]
[1743228994885,0.04094,83831.0,83830.0,0.56500815]
[1743228995088,0.00944,83831.0,83830.0,0.56500815]
[1743228995497,0.04194,83831.0,83830.0,0.56500815]
[1743228996391,0.0405,83831.0,83830.0,0.60993815]
[1743228996696,0.04198,83831.0,83830.0,0.60993815]
[1743228996890,0.00948,83831.0,83830.0,0.60993815]
[1743228997092,0.0405,83831.0,83830.0,0.60993815]
[1743228998101,0.008,83831.0,83830.0,0.60993815]
[1743229001086,0.0381,83831.0,83830.0,0.60993815]
[1743229001897,0.00944,83831.0,83830.0,0.60993815]
[1743229002093,0.008,83831.0,83830.0,0.60993815]
[1743229002492,0.0713,83831.0,83830.0,0.60993815]
[1743229003603,0.1921529,83831.0,83830.0,0.60993815]
[1743229003798,0.4221529,83831.0,83830.0,0.59784764]
[1743229004103,0.1921529,83831.0,83830.0,0.53564764]
[1743229004488,0.1921529,83831.0,83830.0,0.56764764]
[1743229004691,0.1921529,83831.0,83830.0,0.20684764]
[1743229005295,0.4321529,83831.0,83830.0,0.20684764]
[1743229005808,0.3021529,83831.0,83830.0,0.20684764]
[1743229006096,0.1921529,83831.0,83830.0,0.20684764]
[1743229006601,0.3021529,83831.0,83830.0,0.20684764]
[1743229006801,0.1921529,83831.0,83830.0,0.42141329]
[1743229006997,0.4621529,83831.0,83830.0,0.42141329]
[1743229007203,0.4221529,83831.0,83830.0,0.38941329]
[1743229007498,0.1921529,83831.0,83830.0,0.38941329]
[1743229007699,0.4221529,83831.0,83830.0,0.38941329]
[1743229007904,0.4521529,83831.0,83830.0,0.38941329]
[1743229008105,0.4621529,83831.0,83830.0,0.38941329]
[1743229008296,0.4421529,83831.0,83830.0,0.38941329]
[1743229008496,0.1921529,83831.0,83830.0,0.38941329]
[1743229008804,0.3021529,83831.0,83830.0,0.38941329]
[1743229009003,0.3021529,83831.0,83830.0,0.26093565]
[1743229009004,0.4321529,83831.0,83830.0,0.26093565]
[1743229009192,0.7929529,83831.0,83830.0,0.26093565]
[1743229009896,0.9429529,83831.0,83830.0,0.26093565]
[1743229010704,0.9429529,83831.0,83830.0,0.04637]
[1743229010705,1.04995531,83831.0,83830.0,0.04637]
[1743229010907,1.04995531,83831.0,83830.0,0.04493]
[1743229011107,0.1193386,83827.0,83826.0,0.21456565]
[1743229011296,0.4007786,83827.0,83826.0,0.21600565]
[1743229011697,0.5507786,83827.0,83826.0,0.21600565]
[1743229011912,0.6156786,83827.0,83826.0,0.21600565]
[1743229012607,0.6216786,83827.0,83826.0,0.21600565]
[1743229013301,0.6186786,83827.0,83826.0,0.21600565]
[1743229013609,0.6216786,83827.0,83826.0,0.21600565]
[1743229016218,0.67970261,83827.0,83826.0,0.00144]
[1743229016408,0.1193543,83816.0,83815.0,0.11953442]
[1743229016714,0.3807943,83816.0,83815.0,0.12097442]
[1743229017105,0.3807943,83816.0,83815.0,0.11953442]
[1743229017410,0.4450943,83816.0,83815.0,0.11953442]
[1743229019011,0.4450943,83816.0,83815.0,0.12097442]
[1743229019213,0.45725673,83816.0,83815.0,0.12097442]
[1743229020416,0.45725673,83816.0,83815.0,0.00161892]
[1743229021015,0.19725673,83816.0,83815.0,0.00161892]
[1743229021220,0.71805673,83816.0,83815.0,0.00161892]
[1743229021425,0.71805673,83816.0,83815.0,0.00017892]
[1743229022218,0.0596843,83806.0,83799.0,0.21456565]
[1743229022522,0.119377,83800.0,83799.0,0.21604565]
[1743229022815,0.360817,83800.0,83799.0,0.21604565]
[1743229023220,0.721617,83800.0,83799.0,0.21604565]
[1743229023418,0.784417,83800.0,83799.0,0.22304565]
[1743229024014,0.784417,83800.0,83799.0,0.22004565]
[1743229024209,0.784417,83800.0,83799.0,0.22204565]
[1743229024519,0.784417,83800.0,83799.0,0.22194565]
[1743229025215,0.36224,83800.0,83799.0,0.34032415]
[1743229025513,0.00144,83800.0,83799.0,0.34032415]
[1743229025718,0.1790646,83802.0,83801.0,0.1193748]
[1743229025914,0.1790646,83802.0,83801.0,0.1208148]
[1743229026114,0.5226646,83802.0,83801.0,0.1208148]
[1743229026309,0.24326461,83802.0,83801.0,0.1208148]
[1743229026517,0.50326461,83802.0,83801.0,0.1208148]
[1743229026718,0.33326461,83802.0,83801.0,0.1208148]
[1743229027020,0.46326461,83802.0,83801.0,0.1228148]
[1743229027219,0.49326461,83802.0,83801.0,0.1248148]
[1743229027422,0.24326461,83802.0,83801.0,0.1248148]
[1743229027814,0.48326461,83802.0,83801.0,0.00544]
[1743229028825,0.52326461,83802.0,83801.0,0.00544]
[1743229029116,0.49326461,83802.0,83801.0,0.00544]
[1743229029710,0.24326461,83802.0,83801.0,0.1248156]
[1743229030021,0.47326461,83802.0,83801.0,0.00544]
[1743229030218,0.24326461,83802.0,83801.0,0.00544]
[1743229030416,0.51326461,83802.0,83801.0,0.00544]
[1743229030721,0.49326461,83802.0,83801.0,0.00544]
[1743229030926,0.52326461,83802.0,83801.0,0.00544]
[1743229031111,0.49326461,83802.0,83801.0,0.00544]
[1743229031312,0.24326461,83802.0,83801.0,0.00544]
[1743229031614,0.34326461,83802.0,83801.0,0.00544]
[1743229035715,0.34326461,83802.0,83801.0,0.07004]
[1743229036620,0.70406461,83802.0,83801.0,0.07004]
[1743229036924,0.70406461,83802.0,83801.0,0.0686]
[1743229038320,0.70406461,83802.0,83801.0,0.07004]
[1743229038521,0.70406461,83802.0,83801.0,0.0686]
[1743229040921,0.1193842,83795.0,83794.0,0.0303]
[1743229041221,0.1193842,83795.0,83794.0,0.03178]
[1743229041222,0.5916642,83795.0,83794.0,0.03178]
[1743229041433,0.5916642,83795.0,83794.0,0.0303]
[1743229041825,0.6530642,83795.0,83794.0,0.0303]
[1743229042225,0.6530642,83795.0,83794.0,0.0343]
[1743229042424,0.1193884,83792.0,83791.0,0.00017892]
[1743229042614,0.41217059,83792.0,83791.0,0.00017892]
[1743229042826,0.41217059,83792.0,83789.0,0.0303]
[1743229042827,0.1193913,83790.0,83789.0,0.0303]
[1743229043019,0.38799131,83790.0,83789.0,0.0303]
[1743229043419,0.44939131,83790.0,83789.0,0.0303]
[1743229043626,0.0596977,83788.0,83773.0,0.35718979]
[1743229043925,0.119407,83779.0,83778.0,0.28719183]
[1743229044119,0.13026264,83779.0,83778.0,0.28719183]
[1743229044660,0.39926264,83779.0,83778.0,0.28719183]
[1743229044855,0.19486264,83779.0,83778.0,0.28719183]
[1743229045043,0.32486264,83779.0,83778.0,0.28719183]
[1743229045654,0.32486264,83779.0,83778.0,0.28919183]
[1743229045959,0.45386264,83779.0,83778.0,0.1228484]
[1743229046154,0.19386264,83779.0,83778.0,0.1228484]
[1743229046340,0.43386264,83779.0,83778.0,0.1228484]
[1743229046653,0.44386264,83779.0,83778.0,0.1228484]
[1743229046845,0.00144,83779.0,83778.0,0.1536484]
[1743229047040,0.20144,83779.0,83778.0,0.1546484]
[1743229047240,0.120847,83779.0,83778.0,0.1546484]
[1743229047833,0.220847,83779.0,83778.0,0.1546484]
[1743229048032,0.432347,83779.0,83778.0,0.1546484]
[1743229048235,0.152347,83779.0,83778.0,0.1546484]
[1743229048725,0.120847,83779.0,83778.0,0.1546484]
[1743229049029,0.00144,83779.0,83778.0,0.1546484]
[1743229049422,0.119399,83785.0,83784.0,0.1193998]
[1743229049618,0.119399,83785.0,83784.0,0.1208798]
[1743229049619,0.11999901,83785.0,83784.0,0.1208798]
[1743229050136,0.11999901,83785.0,83784.0,0.1845798]
[1743229050729,0.39999901,83785.0,83784.0,0.1845798]
[1743229050927,0.11999901,83785.0,83784.0,0.1845798]
[1743229051930,0.22999901,83785.0,83784.0,0.1845798]
[1743229052138,0.11999901,83785.0,83784.0,0.1845798]
[1743229052537,0.18409901,83785.0,83784.0,0.1845798]
[1743229052739,0.45409901,83785.0,83784.0,0.1845798]
[1743229053039,0.38409901,83785.0,83784.0,0.1845798]
[1743229053235,0.15239901,83785.0,83784.0,0.1845798]
[1743229053734,0.39239901,83785.0,83784.0,0.1845798]
[1743229053928,0.40239901,83785.0,83784.0,0.1845798]
[1743229054128,0.15239901,83785.0,83784.0,0.06518]
[1743229054458,0.15239901,83785.0,83784.0,0.0637]
[1743229054650,0.43239901,83785.0,83784.0,0.06514]
[1743229054860,0.1929969,83785.0,83784.0,0.09744]
[1743229055085,0.3029969,83785.0,83784.0,0.09744]
[1743229055263,0.3029969,83785.0,83784.0,0.096]
[1743229055468,0.1929969,83785.0,83784.0,0.09744]
[1743229055966,0.3029969,83785.0,83784.0,0.09744]
[1743229056147,0.3029969,83785.0,83784.0,0.096]
[1743229056550,0.3029969,83785.0,83784.0,0.09744]
[1743229056755,0.1929969,83785.0,83784.0,0.09744]
[1743229056966,0.2929969,83785.0,83784.0,0.00144]
[1743229057251,0.1194055,83780.0,83779.0,0.0302]
[1743229057562,0.24034074,83780.0,83779.0,0.151047]
[1743229057758,0.40034074,83780.0,83779.0,0.03164]
[1743229057940,0.40034074,83780.0,83779.0,0.00144]
[1743229058139,0.46044074,83780.0,83779.0,0.00144]
[1743229058329,0.47044074,83780.0,83779.0,0.00144]
[1743229058537,0.1791489,83766.0,83765.0,0.1194258]
[1743229058873,0.4803044,83766.0,83765.0,0.1208658]
[1743229059055,0.3788706,83766.0,83765.0,0.1208658]
[1743229059242,0.3988706,83766.0,83765.0,0.1208658]
[1743229059444,0.3788706,83766.0,83765.0,0.12971038]
[1743229059646,0.3788706,83766.0,83765.0,0.01028458]
[1743229059840,0.3668706,83766.0,83765.0,0.06634]
[1743229060051,0.3968706,83766.0,83765.0,0.1857669]
[1743229060249,0.12674158,83766.0,83765.0,0.1857669]
[1743229060551,0.38674158,83766.0,83765.0,0.1857669]
[1743229060838,0.36674158,83766.0,83765.0,0.1877669]
[1743229061032,0.12674158,83766.0,83765.0,0.1917669]
[1743229061232,0.22674158,83766.0,83765.0,0.1917669]
[1743229061429,0.06702608,83766.0,83765.0,0.1917669]
[1743229061641,0.0571551,83766.0,83765.0,0.1917669]
[1743229061938,0.00144,83766.0,83765.0,0.4217669]
[1743229062240,0.1194188,83771.0,83770.0,0.1194198]
[1743229062441,0.13056924,83771.0,83770.0,0.1208598]
[1743229063136,0.16056924,83771.0,83770.0,0.1816598]
[1743229063340,0.13056924,83771.0,83770.0,0.1816598]
[1743229063527,0.23056924,83771.0,83770.0,0.1816598]
[1743229063731,0.13056924,83771.0,83770.0,0.1816598]
[1743229064140,0.38056924,83771.0,83770.0,0.1836598]
[1743229064340,0.13056924,83771.0,83770.0,0.1836598]
[1743229065138,0.13037431,83771.0,83770.0,0.1836598]
[1743229065333,0.34037431,83771.0,83770.0,0.1836598]
[1743229065528,0.13037431,83771.0,83770.0,0.1836598]
[1743229065735,0.41037431,83771.0,83770.0,0.1836598]
[1743229066031,0.13037431,83771.0,83770.0,0.1836598]
[1743229066234,0.37037431,83771.0,83770.0,0.1836598]
[1743229066743,0.13037431,83771.0,83770.0,0.1836598]
[1743229067134,0.44107431,83771.0,83770.0,0.1836598]
[1743229067335,0.47207431,83771.0,83770.0,0.1836598]
[1743229067529,0.19207431,83771.0,83770.0,0.1836598]
[1743229067742,0.29207431,83771.0,83770.0,0.1836598]
[1743229068043,0.46207431,83771.0,83770.0,0.1836598]
[1743229068230,0.19207431,83771.0,83770.0,0.1836598]
[1743229069345,0.39207431,83771.0,83770.0,0.1836598]
[1743229069544,0.19207431,83771.0,83770.0,0.1836598]
[1743229070352,0.29207431,83771.0,83770.0,0.1836598]
[1743229070542,0.44207431,83771.0,83770.0,0.1836598]
[1743229070736,0.29207431,83771.0,83770.0,0.1836598]
[1743229071039,0.19207431,83771.0,83770.0,0.1836598]
[1743229071253,0.39207431,83771.0,83770.0,0.1836598]
[1743229071440,0.43207431,83771.0,83770.0,0.1836598]
[1743229071641,0.28207431,83771.0,83770.0,0.1836598]
[1743229071835,0.40207431,83771.0,83770.0,0.1836598]
[1743229072244,0.45207431,83771.0,83770.0,0.1836598]
[1743229072541,0.19207431,83771.0,83770.0,0.1836598]
[1743229072939,0.16137431,83771.0,83770.0,0.1836598]
[1743229074044,0.19317431,83771.0,83770.0,0.1836598]
[1743229074244,0.13037431,83771.0,83770.0,0.1836598]
[1743229074838,0.38037431,83771.0,83770.0,0.1836598]
[1743229075043,0.19427431,83771.0,83770.0,0.1836598]
[1743229075442,0.44427431,83771.0,83770.0,0.1836598]
[1743229075740,0.42427431,83771.0,83770.0,0.1836598]
[1743229075946,0.29427431,83771.0,83770.0,0.1836598]
[1743229076136,0.19427431,83771.0,83770.0,0.1836598]
[1743229076342,0.42427431,83771.0,83770.0,0.1836598]
[1743229076643,0.19427431,83771.0,83770.0,0.1836598]
[1743229078349,0.07502317,83771.0,83770.0,0.1836598]
[1743229078945,0.01112317,83771.0,83770.0,0.19536468]
[1743229079153,0.14236423,83774.0,83773.0,0.1194155]
[1743229079343,0.14296424,83774.0,83773.0,0.7116555]
[1743229079551,0.14236423,83774.0,83773.0,0.7116555]
[1743229079852,0.14388423,83774.0,83773.0,0.7116555]
[1743229080036,0.14388423,83774.0,83773.0,0.7754555]
[1743229080439,0.14388423,83774.0,83773.0,0.5474555]
[1743229080846,0.49329833,83774.0,83773.0,0.5474555]
[1743229081040,0.52369833,83774.0,83773.0,0.4836555]
[1743229081241,0.56579833,83774.0,83773.0,0.1228555]
[1743229081549,0.61579833,83774.0,83773.0,0.1228555]
[1743229081750,0.57579833,83774.0,83773.0,0.002]
[1743229082046,0.32579833,83774.0,83773.0,0.1229355]
[1743229082662,0.32579833,83774.0,83773.0,0.00352]
[1743229082663,0.1834341,83774.0,83773.0,0.00352]
[1743229083147,0.4434341,83774.0,83773.0,0.00352]
[1743229083337,0.45935873,83774.0,83773.0,0.00352]
[1743229083542,0.47935873,83774.0,83773.0,0.00352]
[1743229083751,0.28935873,83774.0,83773.0,0.002]
[1743229084266,0.2734341,83774.0,83773.0,0.002]
[1743229084454,0.1184269,83765.0,83764.0,0.28575183]
[1743229084638,0.3598669,83765.0,83764.0,0.40662013]
[1743229084842,0.2198669,83765.0,83764.0,0.40662013]
[1743229085147,0.00144,83765.0,83764.0,0.76742013]
[1743229085347,0.0625,83765.0,83764.0,0.76742013]
[1743229085554,0.2625,83765.0,83764.0,0.83162013]
[1743229085757,0.17394,83765.0,83764.0,0.83162013]
[1743229085957,0.06394,83765.0,83764.0,0.83162013]
[1743229086153,0.2819269,83765.0,83764.0,0.83162013]
[1743229086457,0.1833669,83765.0,83764.0,0.1850683]
[1743229086966,0.26394,83765.0,83764.0,0.1850683]
[1743229087260,0.17394,83765.0,83764.0,0.1880683]
[1743229087458,0.1833669,83765.0,83764.0,0.1880683]
[1743229087653,0.4633669,83765.0,83764.0,0.1880683]
[1743229087849,0.4233669,83765.0,83764.0,0.1880683]
[1743229088051,0.4433669,83765.0,83764.0,0.1238683]
[1743229088357,0.4233669,83765.0,83764.0,0.1238683]
[1743229088558,0.1833669,83765.0,83764.0,0.1238683]
[1743229088854,0.4233669,83765.0,83764.0,0.1238683]
[1743229089058,0.2733669,83765.0,83764.0,0.1238683]
[1743229089358,0.4333669,83765.0,83764.0,0.1238683]
[1743229089554,0.4433669,83765.0,83764.0,0.1238683]
[1743229089752,0.32604937,83765.0,83764.0,0.1238683]
[1743229090256,0.32604937,83765.0,83764.0,0.1564683]